[Event "Krakow Championship-A 2022"]
[Site "Krakow"]
[Date "2022.06.30"]
[Round "7.20"]
[White "Michalicka, Milan"]
[Black "Gjestemoen-VonHirsch, Andre"]
[Result "1/2-1/2"]
[ECO "D85"]
[WhiteElo "2222"]
[BlackElo "2236"]
[Annotator "TA"]
[PlyCount "127"]
[EventDate "2022.06.25"]
[EventType "swiss"]
[EventCountry "POL"]
[SourceTitle "playchess.com"]
[Source "ChessBase"]
[SourceQuality "1"]
[TimeControl "40/5400+30:1800+30"]

{[%evp 20,127,24,36,35,24,21,23,20,17,20,7,0,-85,-76,-69,-66,-83,-91,-83,-77,-76,-41,-99,-114,-103,55,27,40,0,0,-70,0,0,0,0,0,16,5,0,8,6,39,7,17,22,40,26,156,166,155,-138,-103,-143,0,0,0,-15,0,0,0,0,0,0,0,0,0,0,0,0,17,0,12,0,0,0,141,164,235,79,79,79,86,62,161,79,79,0,0,0,0,0,0,0,0,0,0,0,0,0,0,0,0,0,0,0,0,0,0,0]} 1. d4 {[%emt 0:00:02]} Nf6 {[%emt 0:01:11]} 2. c4 {[%emt 0:00:07]} g6 {[%emt 0:00:10]} 3. Nc3 {[%emt 0:00:09]} d5 {[%emt 0:00:13]} 4. cxd5 {[%emt 0:00:13]} Nxd5 {[%emt 0:00:05]} 5. e4 {[%emt 0:00:11]} Nxc3 {[%emt 0:00:04]} 6. bxc3 {[%emt 0:00:04]} Bg7 {[%emt 0:00:05]} 7. Nf3 {[%emt 0:00:10]} c5 {[%emt 0:00:05]} 8. Be3 {[%emt 0:00:10]} Qa5 {[%emt 0:00:06]} 9. Qd2 {[%emt 0:00:09]} O-O {[%emt 0:00:10]} 10. Rc1 {[%emt 0:00:33]} Bg4 {[%emt 0:00:13]} 11. d5 $1 {[%emt 0:03:30] 11.d5 scores better than 11.Be2.} b5 {[%emt 0:01:28] D85: Exchange Grünfeld: Unusual White 7th moves and lines with 7 Nf3.} 12. Be2 {[%emt 0:13:19]} Nd7 {[%emt 0:01:04]} 13. c4 {[%emt 0:02:46]} b4 {[%emt 0:00:26] White has an edge.} 14. O-O {[%emt 0:00:19]} Rfe8 {[%emt 0:01:53] [#]} 15. Rc2 $146 {[%emt 0:09:16]} ({Predecessor:} 15. h3 Bxf3 16. Bxf3 Bc3 {½-½ (16) Sutkus,V (2447)-Biedermann,T (2450) ICCF email 2018}) 15... e6 {[%emt 0:08:40]} 16. dxe6 {[%emt 0:06:34]} (16. h3 $11 Bc3 17. Qc1 Bxf3 18. Bxf3) 16... Bxe6 $17 {[%emt 0:00:10]} 17. Ng5 {[%emt 0:00:16]} Nf8 {[%emt 0:14:42]} 18. Qd6 {[%emt 0:01:48]} Rac8 {[%emt 0:04:00]} 19. Qg3 {[%emt 0:09:31]} Qa4 {[%emt 0:07:54]} 20. Bd1 {[%emt 0:02:20]} h6 {[%emt 0:22:46]} 21. Nf3 {[%emt 0:08:56]} (21. Nxe6 $15 Nxe6 22. Rd2) 21... Red8 {[%emt 0:01:33][%cal Od8d1]} 22. Nd2 {[%emt 0:01:32]} (22. Rd2 Qa6 23. Bb3 Bxc4 $19) 22... f5 $2 {[%emt 0:12:58]} (22... a5 $17) 23. Nb3 $14 {[%emt 0:04:57]} Qd7 {[%emt 0:06:53] Hoping for ...Qxd1.} 24. Be2 {[%emt 0:02:58][%cal Bd1e2,Be2f3,Bf3d5][%mdl 32]} Qe7 $1 {[%emt 0:00:16]} 25. e5 {[%emt 0:03:36]} (25. Bf3 $11) 25... Bf7 {[%emt 0:02:30]} (25... g5 $1 $15 26. f4 Ng6) 26. f4 $11 {[%emt 0:00:52]} Ne6 {[%emt 0:00:30][%cal Oa7a5]} 27. Qf2 {[%emt 0:00:31]} Qc7 {[%emt 0:03:18]} 28. Bf3 {[%emt 0:01:09]} Bf8 {[%emt 0:01:25][%cal Oe6d4]} 29. Bd5 {[%emt 0:01:10][%cal Og2g4]} a5 $1 {[%emt 0:00:45]} 30. Rd2 {[%emt 0:10:34][%cal Og2g4]} Kh7 {[%emt 0:05:03]} (30... a4 $5 {[%cal Ra4b3]}) 31. Rfd1 {[%emt 0:05:55]} a4 {[%emt 0:00:05]} 32. Nc1 {[%emt 0:00:56]} Nd4 {[%emt 0:03:23]} 33. Bxd4 {[%emt 0:04:41]} Bxd5 {[%emt 0:00:28]} (33... cxd4 $11 34. e6 (34. Rxd4 $2 Bxd5 35. cxd5 Qxc1 $17) (34. Qxd4 $2 Bc5 $19) 34... Be8) 34. cxd5 $16 {[%emt 0:00:27]} cxd4 {[%emt 0:00:03]} 35. d6 $2 {[%emt 0:00:27]} ({Avoid the trap} 35. Qxd4 $2 Bc5 36. Kf1 Bxd4 $19) (35. Qf3 $16 {is necessary to keep the advantage.}) 35... Qxc1 $1 $17 {[%emt 0:00:04]} 36. Qxd4 {[%emt 0:01:32]} Qc6 {[%emt 0:03:17]} (36... Qc4 $17 {And now ...Qb5 would win.} 37. Rb1 Qxd4+ 38. Rxd4 Rc2) 37. Qxb4 $11 {[%emt 0:00:32]} Rb8 {[%emt 0:00:33]} 38. Qa5 {[%emt 0:02:16]} Rd7 {[%emt 0:00:30] Against Qc7} 39. Rd4 {[%emt 0:01:01]} Rb2 {[%emt 0:00:12][%csl Gb2,LRa2,LRg2][%cal Rc6g2]} 40. R4d2 {[%emt 0:00:39]} Rxd2 {[%emt 0:00:16]} 41. Qxd2 {[%emt 0:30:16]} a3 {[%emt 0:14:49]} 42. h3 {[%emt 0:00:00]} Qc4 {[%emt 0:02:54]} 43. Kh1 {[%emt 0:00:00]} h5 {[%emt 0:00:29]} 44. Rc1 {[%emt 0:00:00]} Qb5 {[%emt 0:07:08]} 45. h4 Kh6 {[%emt 0:03:49]} 46. Qc3 {[%emt 0:00:00] Strongly threatening Qc8.} Qb2 47. Rc2 {[%emt 0:00:00]} Qxc3 {[%emt 0:04:51]} (47... Rb7 $11) 48. Rxc3 $16 {[%emt 0:00:00]} Bxd6 {[%emt 0:00:31]} (48... Rd8 {was worth a try.} 49. Rxa3 Bxd6 50. exd6 Rxd6) 49. exd6 $2 {[%emt 0:00:00]} (49. Rd3 $18) 49... Rxd6 {[%emt 0:00:03]} 50. Rxa3 $11 {[%emt 0:00:00][%mdl 4096] Endgame KR-KR} Kg7 {[%emt 0:00:04]} 51. Kg1 {[%emt 0:00:00]} Rd2 {[#]} (51... Kf7 $14) 52. g3 {[%emt 0:00:00]} (52. Ra7+ $1 $18 Kf6 53. Ra6+ Kg7 54. a4) 52... Kf7 {[%emt 0:00:33] [#]} 53. Kf1 {[%emt 0:00:00]} ({Better is} 53. Ra6 $1 $16) 53... Ke6 {The position is equal.} 54. Ra6+ Kd5 $1 {[%emt 0:01:21]} 55. Ke1 {[%emt 0:00:00]} Rg2 {[%emt 0:00:52]} 56. Ra3 {[%emt 0:00:00]} Ke4 {[%emt 0:00:34]} 57. Kd1 {[%emt 0:00:00]} Rg1+ {[%emt 0:00:51]} 58. Ke2 {[%emt 0:00:38]} Rg2+ {[%emt 0:00:03]} 59. Kf1 {[%emt 0:00:28]} Rb2 60. Kg1 Rb1+ {[%emt 0:01:07]} 61. Kg2 {[%emt 0:03:21]} Rb2+ {[%emt 0:00:03]} 62. Kf1 {[%emt 0:03:38]} Rb1+ {[%emt 0:00:04]} 63. Ke2 {[%emt 0:00:06]} Rb2+ {[%emt 0:00:17]} 64. Kf1 {Weighted Error Value: White=0.28 (precise) /Black=0.24 (precise)} 1/2-1/2

[Event "Krakow Championship-A 2022"]
[Site "Krakow"]
[Date "2022.06.30"]
[Round "7.21"]
[White "Kantorik, Marian"]
[Black "Easwaralingam, Adesh"]
[Result "1-0"]
[ECO "E46"]
[WhiteElo "2211"]
[BlackElo "2116"]
[Annotator "RC"]
[PlyCount "175"]
[EventDate "2022.06.25"]
[EventType "swiss"]
[EventCountry "POL"]
[SourceTitle "playchess.com"]
[Source "ChessBase"]
[SourceQuality "1"]
[TimeControl "40/5400+30:1800+30"]

1. d4 {[%emt 0:00:07]} Nf6 {[%emt 0:00:30]} 2. c4 {[%emt 0:00:09]} e6 {[%emt 0:00:14]} 3. Nc3 {[%emt 0:00:21]} Bb4 {[%emt 0:00:10]} 4. e3 {[%emt 0:00:11]} O-O {[%emt 0:01:29]} 5. Nge2 {[%emt 0:00:42]} c6 {[%emt 0:00:49]} 6. a3 {[%emt 0:01:06]} Ba5 {[%emt 0:00:07]} 7. b4 {[%emt 0:06:51]} Bc7 {[%emt 0:00:10]} 8. e4 {[%emt 0:00:50]} d5 {[%emt 0:00:10]} 9. e5 {[%emt 0:00:58]} Nfd7 {[%emt 0:00:09]} 10. c5 {[%emt 0:08:01]} b6 {[%emt 0:08:34]} 11. g3 {[%emt 0:06:26]} a5 {[%emt 0:08:36]} 12. Be3 {[%emt 0:01:12]} axb4 {[%emt 0:05:18]} 13. axb4 {[%emt 0:00:14]} Rxa1 {[%emt 0:00:03]} 14. Qxa1 {[%emt 0:00:17]} bxc5 {[%emt 0:00:04]} 15. bxc5 {[%emt 0:00:16]} Ba5 {[%emt 0:00:06]} 16. Bd2 {[%emt 0:04:21]} Ba6 {[%emt 0:15:05]} 17. Nf4 {[%emt 0:07:38]} Bxf1 {[%emt 0:04:07]} 18. Kxf1 {[%emt 0:01:41]} Bxc3 {[%emt 0:03:05]} 19. Bxc3 {[%emt 0:04:01]} Qc8 {[%emt 0:04:01]} 20. Kg2 {[%emt 0:03:42]} Na6 {[%emt 0:00:18]} 21. Ba5 {[%emt 0:01:41]} Qa8 {[%emt 0:03:20]} 22. Rb1 {[%emt 0:01:37]} Rb8 {[%emt 0:01:03]} 23. Bb6 {[%emt 0:07:40]} Qb7 {[%emt 0:03:14]} 24. Ne2 {[%emt 0:09:38]} Ra8 {[%emt 0:10:12]} 25. Qb2 {[%emt 0:04:38]} Nab8 {[%emt 0:09:54]} 26. Nc3 {[%emt 0:01:21]} Ra6 {[%emt 0:01:32]} 27. Bd8 {[%emt 0:01:33]} Qxb2 {[%emt 0:01:20]} 28. Rxb2 {[%emt 0:00:04]} Kf8 {[%emt 0:01:24]} 29. Bc7 {[%emt 0:00:41]} Ra8 {[%emt 0:00:05]} 30. Bxb8 {[%emt 0:02:28]} Rxb8 {[%emt 0:01:06]} 31. Ra2 {[%emt 0:01:48]} Rb4 {[%emt 0:03:28]} 32. Ne2 {[%emt 0:00:17]} Rb7 {[%emt 0:02:21]} 33. Ra8+ {[%emt 0:12:03]} Ke7 {[%emt 0:02:13]} 34. f4 {[%emt 0:00:51]} h5 {[%emt 0:00:32]} 35. Kf2 {[%emt 0:02:37]} g6 {[%emt 0:03:11]} 36. Ke3 {[%emt 0:00:18]} Nb8 {[%emt 0:00:40]} 37. Kd3 {[%emt 0:02:06]} Kd7 {[%emt 0:00:35]} 38. Kc2 {[%emt 0:01:02]} Kc7 {[%emt 0:01:52]} 39. Ng1 {[%emt 0:00:40]} Kc8 {[%emt 0:04:25]} 40. Nf3 {[%emt 0:01:30]} Re7 {[%emt 0:00:05]} 41. Nd2 {[%emt 0:30:59]} Rb7 {[%emt 0:30:30]} 42. Nf3 {[%emt 0:02:13]} Re7 {[%emt 0:00:13]} 43. Ra4 {[%emt 0:00:52]} Kb7 {[%emt 0:00:35]} 44. Rb4+ {[%emt 0:01:14]} Kc8 {[%emt 0:01:10]} 45. Ng5 {[%emt 0:03:04]} Kc7 {[%emt 0:02:02]} 46. Rb6 {[%emt 0:00:48]} Nd7 {[%emt 0:00:39]} 47. Ra6 {[%emt 0:00:39]} Kb7 {[%emt 0:00:10]} 48. Ra3 {[%emt 0:00:00]} Nb8 {[%emt 0:00:00]} 49. h3 {[%emt 0:00:00]} Nd7 {[%emt 0:00:00]} 50. Nf3 {[%emt 0:00:00]} Re8 {[%emt 0:00:00]} 51. Kd2 {[%emt 0:00:00]} Kb8 {[%emt 0:00:00]} 52. Ke2 {[%emt 0:00:00]} Kb7 {[%emt 0:00:00]} 53. Kf2 {[%emt 0:00:00]} Rh8 {[%emt 0:00:00]} 54. Ng5 {[%emt 0:00:00]} Rf8 {[%emt 0:00:00]} 55. g4 {[%emt 0:00:00]} h4 {[%emt 0:00:00]} 56. Nf3 {[%emt 0:00:00]} Rh8 {[%emt 0:00:00]} 57. Ke3 {[%emt 0:00:00]} Kb8 {[%emt 0:00:00]} 58. Ne1 {[%emt 0:00:00]} Kb7 {[%emt 0:00:00]} 59. Nd3 {[%emt 0:00:00]} Nb8 {[%emt 0:00:00]} 60. Nb4 {[%emt 0:00:00]} Re8 {[%emt 0:00:00]} 61. Kf3 {[%emt 0:00:00]} Rh8 {[%emt 0:00:00]} 62. g5 {[%emt 0:00:00]} Re8 {[%emt 0:00:00]} 63. Kg4 {[%emt 0:00:00]} Rh8 {[%emt 0:00:00]} 64. Ra2 {[%emt 0:00:00]} Rh7 {[%emt 0:00:00]} 65. Nd3 {[%emt 0:00:00]} Rh8 {[%emt 0:00:00]} 66. Ne1 {[%emt 0:00:00]} Na6 {[%emt 0:00:00]} 67. Rb2+ {[%emt 0:00:00]} Kc7 {[%emt 0:00:00]} 68. Nf3 {[%emt 0:00:00]} Nb8 {[%emt 0:02:05]} 69. Ra2 {[%emt 0:00:00]} Kb7 {[%emt 0:00:13]} 70. Nxh4 {[%emt 0:00:00]} Nd7 {[%emt 0:00:12]} 71. Nf3 {[%emt 0:00:00]} Kb8 {[%emt 0:00:37]} 72. h4 {[%emt 0:00:00]} Kb7 {[%emt 0:00:04]} 73. Ra1 {[%emt 0:00:00]} Nb8 {[%emt 0:00:41]} 74. Nd2 {[%emt 0:00:00]} Na6 {[%emt 0:00:24]} 75. Nb3 {[%emt 0:00:00]} Ra8 {[%emt 0:01:27]} 76. h5 {[%emt 0:00:00]} gxh5+ {[%emt 0:00:12]} 77. Kxh5 {[%emt 0:00:00]} Rh8+ {[%emt 0:00:12]} 78. Kg4 {[%emt 0:00:00]} Nb4 {[%emt 0:02:01]} 79. Na5+ {[%emt 0:01:02]} Kc7 {[%emt 0:00:03]} 80. Rb1 {[%emt 0:01:01]} Rb8 {[%emt 0:00:09]} 81. f5 {[%emt 0:00:46]} Kd7 {[%emt 0:00:50]} 82. f6 {[%emt 0:01:07]} Rb5 {[%emt 0:01:15]} 83. g6 {[%emt 0:00:42]} fxg6 {[%emt 0:00:09]} 84. Kg5 {[%emt 0:00:37]} Rxa5 {[%emt 0:00:47]} 85. Rxb4 {[%emt 0:00:10]} Ra2 {[%emt 0:00:15]} 86. Kxg6 {[%emt 0:00:15]} Rg2+ {[%emt 0:02:21]} 87. Kf7 {[%emt 0:00:13]} Rg4 {[%emt 0:00:05]} 88. Ra4 {[%emt 0:00:49]} 1-0

[Event "Krakow Championship-A 2022"]
[Site "Krakow"]
[Date "2022.07.01"]
[Round "8.1"]
[White "Warakomski, Tomasz"]
[Black "Zwardon, Vojtech"]
[Result "1/2-1/2"]
[ECO "B31"]
[WhiteElo "2534"]
[BlackElo "2482"]
[Annotator "TA"]
[PlyCount "96"]
[EventDate "2022.06.25"]
[EventType "swiss"]
[EventCountry "POL"]
[SourceTitle "playchess.com"]
[Source "ChessBase"]
[SourceQuality "1"]
[TimeControl "40/5400+30:1800+30"]

{[%evp 17,96,15,18,15,15,4,15,15,48,31,31,47,42,36,39,33,40,32,52,8,5,14,23,26,40,33,70,22,18,22,33,11,33,30,62,60,64,64,66,78,79,79,96,11,14,5,14,0,0,0,109,95,189,187,216,211,265,196,226,187,178,179,179,176,277,126,289,289,288,282,269,258,275,275,264,-8,-8,-8,-8,-8,-8]} 1. e4 {[%emt 0:00:03]} c5 {[%emt 0:06:51]} 2. Nf3 {[%emt 0:00:06]} Nc6 {[%emt 0:00:02]} 3. Bb5 {[%emt 0:00:13]} g6 {[%emt 0:00:03]} 4. Bxc6 {[%emt 0:00:06]} dxc6 {[%emt 0:00:02]} 5. d3 {[%emt 0:00:10]} Bg7 {[%emt 0:00:03]} 6. h3 {[%emt 0:00:07]} Nf6 {[%emt 0:00:01]} 7. Nc3 {[%emt 0:00:10]} O-O {[%emt 0:00:04]} 8. Be3 {[%emt 0:00:06]} b6 {[%emt 0:00:03]} 9. Qd2 {[%emt 0:00:05]} e5 {[%emt 0:00:02]} 10. O-O {[%emt 0:05:43] B31: Sicilian: 2...Nc6 3 Bb5 g6.} Qd6 {[%emt 0:02:51] [#]} 11. b3 $146 {[%emt 0:00:56]} ({Predecessor:} 11. Bh6 Ne8 12. Nh2 f6 13. Bxg7 Nxg7 14. f4 exf4 15. Qxf4 Qxf4 16. Rxf4 Ne6 17. Rf2 Nd4 {½-½ (69) Haugen,A (2545)-Laine,P (2485) ICCF email 2012}) 11... Nh5 {[%emt 0:01:32]} 12. Rae1 {[%emt 0:01:46]} f5 {[%emt 0:02:57]} 13. exf5 {[%emt 0:00:06]} gxf5 {[%emt 0:00:40]} 14. Qe2 {[%emt 0:00:19]} Ba6 {[%emt 0:19:30][%cal Oe5e4]} 15. Nh4 {[%emt 0:07:09]} Nf4 {[%emt 0:02:32]} 16. Bxf4 {[%emt 0:00:41]} exf4 {[%emt 0:00:08]} 17. Nb1 {[%emt 0:03:25]} Bc8 {[%emt 0:00:22]} 18. Nf3 {[%emt 0:29:33]} Bd7 {[%emt 0:02:00]} 19. Qe7 {[%emt 0:02:19]} Qxe7 {[%emt 0:01:14]} (19... Rf6 {with more complications.} 20. Nbd2 b5 21. Re2 Re8) 20. Rxe7 {[%emt 0:00:05]} Rf7 {[%emt 0:00:22]} 21. Rfe1 {[%emt 0:00:20]} Rd8 {[%emt 0:11:33]} 22. Rxf7 {[%emt 0:03:05]} ({White should try} 22. R7e2 $1 $14) 22... Kxf7 $11 {[%emt 0:00:32]} 23. Ne5+ {[%emt 0:00:05]} Bxe5 {[%emt 0:04:49]} 24. Rxe5 {[%emt 0:00:06][%mdl 4096] Endgame KRB-KRN} Kf6 {[%emt 0:00:01]} 25. Re1 {[%emt 0:00:23]} b5 {[%emt 0:11:47]} 26. Nc3 {[%emt 0:06:04]} f3 {[%emt 0:03:51]} 27. gxf3 {[%emt 0:01:02][%cal Bg2f3,Bf3f4][%mdl 32]} Be6 {[%emt 0:00:57]} 28. f4 {[%emt 0:00:39]} c4 {[%emt 0:11:39]} 29. dxc4 {[%emt 0:08:42]} bxc4 {[%emt 0:00:07]} 30. b4 {[%emt 0:05:15]} (30. Rd1 $16 Rxd1+ 31. Nxd1) 30... Rd2 {[%emt 0:02:53]} 31. Re2 {[%emt 0:00:06]} Rd4 {[%emt 0:00:08]} 32. Kg2 {[%emt 0:00:05]} Rxf4 {[%emt 0:01:14]} 33. Rd2 {[%emt 0:00:14] aiming for Kg3.} Rh4 {[%emt 0:00:25]} (33... Ke5 $11) 34. Rd6 $16 {[%emt 0:00:33]} f4 {[%emt 0:03:46]} (34... c5 $16) 35. Rxc6 $18 {[%emt 0:00:06]} Ke7 {[%emt 0:00:59]} 36. Ra6 {[%emt 0:02:35]} Bf5 {[%emt 0:03:43]} 37. Nd5+ {[%emt 0:06:48]} ({Don't do} 37. Rxa7+ $6 Kd8 38. b5 Kc8 $18) 37... Kd8 {[%emt 0:00:32]} 38. Kf3 {[%emt 0:00:23] Hoping for b5.} Rxh3+ {[%emt 0:01:08]} 39. Kxf4 {[%emt 0:00:05]} Bxc2 {[%emt 0:00:42]} 40. Rxa7 {[%emt 0:00:08] And now b5 would win.} Bd1 {[%emt 0:07:52]} (40... c3 {was worth a try.}) 41. Ra6 {[%emt 0:38:59]} (41. b5 $18 {is the precise move to win. Black must now prevent b6.} Bf3 42. Ra8+ Kd7 43. Nf6+ Kd6 44. Rc8) 41... Kd7 $2 {[%emt 0:03:07]} (41... Kc8 $16 {was necessary.} 42. Ne3 (42. Rc6+ Kb7 $16) 42... Rf3+ 43. Ke4 Be2) 42. Ke5 {[%emt 0:00:00] Threatens to win with Rd6+.} (42. Nb6+ Kc6 43. Nxc4+ Kb5 $14) 42... Bf3 {[%emt 0:03:27]} 43. Rd6+ {[%emt 0:00:00]} Kc8 {[%emt 0:00:51]} 44. Nb6+ {[%emt 0:00:00]} Kc7 {[%emt 0:00:13] Strongly threatening ...Rh5+.} 45. Nxc4 {[%emt 0:00:00]} Rh5+ {[%emt 0:05:56] [#]} 46. Kf4 $2 {[%emt 0:00:00]} ({White must play} 46. Ke6 $1 $18) 46... Bd5 $11 {[%emt 0:00:23] The position is equal.} 47. Kg4 {[%emt 0:00:00] [#]} Bxc4 $1 {[%emt 0:00:09]} 48. Kxh5 {[%emt 0:00:00]} (48. Rd7+ Kxd7) 48... Kxd6 {[%emt 0:00:07] Weighted Error Value: White=0.28 (precise) /Black=0.23 (precise)} 1/2-1/2

[Event "Krakow Championship-A 2022"]
[Site "Krakow"]
[Date "2022.07.01"]
[Round "8.2"]
[White "Klimkowski, Jan"]
[Black "Nguyen, Piotr"]
[Result "1/2-1/2"]
[ECO "C18"]
[WhiteElo "2401"]
[BlackElo "2402"]
[Annotator "TA"]
[PlyCount "33"]
[EventDate "2022.06.25"]
[EventType "swiss"]
[EventCountry "POL"]
[SourceTitle "playchess.com"]
[Source "ChessBase"]
[SourceQuality "1"]
[TimeControl "40/5400+30:1800+30"]

{[%evp 13,33,10,9,0,8,0,43,34,60,66,73,64,86,48,39,33,29,0,52,0,39,0]} 1. e4 {[%emt 0:00:02]} e6 {[%emt 0:00:08]} 2. d4 {[%emt 0:00:07]} d5 {[%emt 0:00:06]} 3. Nc3 {[%emt 0:00:06]} Bb4 {[%emt 0:00:05]} 4. e5 {[%emt 0:00:14]} c5 {[%emt 0:00:09]} 5. a3 {[%emt 0:00:10]} Bxc3+ {[%emt 0:00:08]} 6. bxc3 {[%emt 0:00:05]} Qa5 {[%emt 0:00:19]} 7. Bd2 {[%emt 0:00:08]} Qa4 {[%emt 0:00:05]} 8. h4 {[%emt 0:00:22] C18: French: 3 Nc3 Bb4: Main line: 7 h4 and 7 Qg4.} Nc6 {[%emt 0:13:01] 8...Ne7 injects fresh life into this line.} 9. h5 {[%emt 0:00:31]} Bd7 {[%emt 0:15:47]} 10. Nf3 {[%emt 0:06:27]} Nge7 {[%emt 0:07:01][%cal Rc5d4]} 11. h6 {[%emt 0:05:03]} gxh6 {[%emt 0:00:55][%cal Rc5d4]} 12. Rb1 {[%emt 0:05:48]} O-O-O {[%emt 0:08:57] [#]} 13. Bb5 $146 {[%emt 0:15:05]} ({Predecessor:} 13. Qc1 Nf5 14. Qb2 Na5 15. Bd3 Rhg8 16. Bxf5 exf5 17. Rxh6 Bc6 18. Bg5 Rd7 19. g3 {½-½ (52) Berera,S (1712)-Miller,D (2103) Cardiff 2017}) 13... Qxa3 {[%emt 0:03:03]} 14. Ra1 {[%emt 0:06:27]} Qb2 {[%emt 0:00:10][%csl LRb5,LRd4]} 15. Rb1 {[%emt 0:00:45][%mdl 1024] White has compensation.} Qa3 {[%emt 0:00:12]} 16. Ra1 {[%emt 0:06:48]} Qb2 {[%emt 0:00:08][%csl LRb5,LRd4]} 17. Rb1 {[%emt 0:00:06] Weighted Error Value: White=0.16 (very precise) /Black=0.08 (flawless)} 1/2-1/2

[Event "Krakow Championship-A 2022"]
[Site "Krakow"]
[Date "2022.07.01"]
[Round "8.3"]
[White "Fus, Jakub"]
[Black "Rudolf, Michal"]
[Result "1/2-1/2"]
[ECO "D10"]
[WhiteElo "2378"]
[BlackElo "2361"]
[Annotator "TA"]
[PlyCount "49"]
[EventDate "2022.06.25"]
[EventType "swiss"]
[EventCountry "POL"]
[SourceTitle "playchess.com"]
[Source "ChessBase"]
[SourceQuality "1"]
[TimeControl "40/5400+30:1800+30"]

{[%evp 13,49,29,25,20,29,15,10,11,19,18,29,20,29,21,31,27,29,25,29,0,0,0,0,0,0,0,0,0,0,0,0,-29,-19,-14,-25,-54,-24,-14]} 1. d4 {[%emt 0:00:09]} d5 {[%emt 0:00:07]} 2. c4 {[%emt 0:00:52]} c6 {[%emt 0:00:33]} 3. Nc3 {[%emt 0:04:43]} Nf6 {[%emt 0:00:07]} 4. e3 {[%emt 0:00:18]} Bf5 {[%emt 0:00:22]} 5. Nf3 {[%emt 0:01:22]} e6 {[%emt 0:00:06]} 6. Nh4 {[%emt 0:03:48]} Bg6 {[%emt 0:00:09]} 7. Nxg6 {[%emt 0:02:27]} hxg6 {[%emt 0:00:08]} 8. Qb3 {[%emt 0:01:17] D12: Slav Defence: 3 Nf3 Nf6 4 e3 Bf5.} Qc7 {[%emt 0:00:49]} 9. Bd2 {[%emt 0:01:13]} Nbd7 {[%emt 0:00:17]} 10. g3 {[%emt 0:01:59] The position is equal.} Be7 {[%emt 0:05:05]} 11. Rc1 {[%emt 0:01:40]} Nb6 {[%emt 0:00:19]} 12. c5 {[%emt 0:24:57]} Nbd7 {[%emt 0:00:09]} 13. Bg2 {[%emt 0:00:22]} e5 {[%emt 0:00:51]} 14. O-O {[%emt 0:05:44]} O-O {[%emt 0:02:37]} 15. Qc2 {[%emt 0:01:02]} Rfe8 {[%emt 0:05:34] [#]} 16. f4 $146 {[%emt 0:08:16]} ({Predecessor:} 16. b4 Nf8 17. b5 Ne6 18. Qa4 e4 19. f3 exf3 20. Rxf3 Ng5 21. Rf4 Ne6 22. Rff1 Ng5 23. Rf4 Ne6 24. Rff1 Ng5 {½-½ (24) Jussupow,A (2633)-Akopian,V (2660) Yerevan 2001}) 16... exd4 {[%emt 0:02:44]} 17. exd4 {[%emt 0:00:17]} b6 {[%emt 0:04:46]} 18. b4 {[%emt 0:00:19]} a5 {[%emt 0:00:38]} 19. a3 {[%emt 0:00:08][%cal Ba2a3,Ba3b4,Bb4c5][%mdl 32]} axb4 {[%emt 0:00:53]} 20. axb4 {[%emt 0:00:04]} bxc5 {[%emt 0:00:10]} 21. bxc5 {[%emt 0:00:05]} Nf8 {[%emt 0:05:09]} 22. Ra1 {[%emt 0:09:33]} Qd7 {[%emt 0:05:23]} 23. Rxa8 {[%emt 0:16:52]} Rxa8 {[%emt 0:00:38]} 24. h3 {[%emt 0:01:39]} Qf5 {[%emt 0:01:45]} (24... Ne6 $5 {[%cal Re6d4]} 25. Be3 Ra3 $15) 25. Rc1 {[%emt 0:00:42] Weighted Error Value: White=0.07 (flawless) /Black=0.04 (flawless)} 1/2-1/2

[Event "Krakow Championship-A 2022"]
[Site "Krakow"]
[Date "2022.07.01"]
[Round "8.4"]
[White "Rozentalis, Eduardas"]
[Black "Pechac, Jergus"]
[Result "1/2-1/2"]
[ECO "C67"]
[WhiteElo "2523"]
[BlackElo "2597"]
[Annotator "TA"]
[PlyCount "48"]
[EventDate "2022.06.25"]
[EventType "swiss"]
[EventCountry "POL"]
[SourceTitle "playchess.com"]
[Source "ChessBase"]
[SourceQuality "1"]
[TimeControl "40/5400+30:1800+30"]

{[%evp 18,23,21,20,27,0,10,9]} 1. e4 {[%emt 0:00:04]} e5 {[%emt 0:00:30]} 2. Nf3 {[%emt 0:00:23]} Nc6 {[%emt 0:00:06]} 3. Bb5 {[%emt 0:00:15]} Nf6 {[%emt 0:00:06]} 4. O-O {[%emt 0:00:59][%cal Bh1f1,Bf1e1,Be1e5][%mdl 32]} Nxe4 {[%emt 0:00:05]} 5. Re1 {[%emt 0:00:21]} Nd6 {[%emt 0:00:05]} 6. Nxe5 {[%emt 0:00:13]} Be7 {[%emt 0:00:06]} 7. Bf1 {[%emt 0:00:31]} Nxe5 {[%emt 0:00:05]} 8. Rxe5 {[%emt 0:00:03]} O-O {[%emt 0:00:09]} 9. d4 {[%emt 0:00:56]} Bf6 {[%emt 0:00:05]} 10. Re1 {[%emt 0:00:16]} Re8 {[%emt 0:00:05] C67: Ruy Lopez: Berlin Defence: 4 0-0 Nxe4.} 11. Rxe8+ {[%emt 0:00:33]} Nxe8 {[%emt 0:00:06]} 12. c3 {[#] A rather calm draw.} {Predecessor:} d5 $146 13. Bf4 c6 14. Bd3 g6 15. Nd2 Ng7 16. Nf3 Bf5 17. h3 Bxd3 18. Qxd3 Qd7 19. Ne5 Qf5 20. Qxf5 Nxf5 21. Ng4 Bg7 22. Ne5 Bf6 23. Ng4 Bg7 24. Ne5 Bf6 {½-½ (24) Mamedyarov,S (2762)-Radjabov,T (2763) chess24.com INT 2021} 1/2-1/2

[Event "Krakow Championship-A 2022"]
[Site "Krakow"]
[Date "2022.07.01"]
[Round "8.5"]
[White "Skytte, Rasmus"]
[Black "Holtel, Jasper"]
[Result "1/2-1/2"]
[ECO "B22"]
[WhiteElo "2357"]
[BlackElo "2347"]
[Annotator "TA"]
[PlyCount "36"]
[EventDate "2022.06.25"]
[EventType "swiss"]
[EventCountry "POL"]
[SourceTitle "playchess.com"]
[Source "ChessBase"]
[SourceQuality "1"]
[TimeControl "40/5400+30:1800+30"]

{[%evp 20,36,0,8,0,1,0,0,9,0,9,3,29,13,17,0,28,20,26]} 1. e4 {[%emt 0:00:03][%cal Be2e4,Be4e5][%mdl 32]} c5 {[%emt 0:00:28]} 2. c3 {[%emt 0:00:25]} Nf6 {[%emt 0:00:08]} 3. e5 {[%emt 0:00:27]} Nd5 {[%emt 0:01:27]} 4. Nf3 {[%emt 0:00:18]} d6 {[%emt 0:00:34]} 5. exd6 {[%emt 0:00:33]} e6 {[%emt 0:00:22]} 6. g3 {[%emt 0:00:55]} Bxd6 {[%emt 0:00:25]} 7. Bg2 {[%emt 0:00:20]} Nc6 {[%emt 0:00:58]} 8. O-O {[%emt 0:01:32]} O-O {[%emt 0:00:10]} 9. d4 {[%emt 0:00:12]} cxd4 {[%emt 0:00:20]} 10. Nxd4 {[%emt 0:00:08]} Nxd4 {[%emt 0:00:21]} 11. Qxd4 {[%emt 0:01:10]} Qc7 {[%emt 0:01:02] B22: Sicilian: 2 c3.} 12. c4 $1 {[%emt 0:00:21][%mdl 4] is now more promising than 12.Nd2.} Nf6 {[%emt 0:03:45]} 13. Nc3 {[%emt 0:01:42] [#] aiming for Nb5.} Bd7 {[%emt 0:14:52]} 14. Rd1 {[%emt 0:01:57]} Be5 {[%emt 0:05:29] [#]} 15. Qe3 $146 {[%emt 0:02:32]} ({Predecessor:} 15. Bf4 Bxf4 16. Qxf4 Qxf4 17. gxf4 Rac8 18. Rd4 Bc6 19. Rad1 g6 20. b3 a6 21. Rd6 Bxg2 22. Kxg2 {0-1 (60) Oberoi,S (2198)-Preotu,R (2462) Richardson 2022}) 15... Bc6 {[%emt 0:05:50]} 16. Bxc6 {[%emt 0:15:13]} bxc6 {[%emt 0:00:33]} 17. Re1 {[%emt 0:01:00]} Bd6 {[%emt 0:08:06]} 18. b3 {[%emt 0:04:27]} Rfd8 {[%emt 0:01:33] Not much happened in this game.  Weighted Error Value: White=0.05 (flawless) /Black=0.08 (flawless)} 1/2-1/2